[Event "European Union U14-ch 2024"]
[Site "Roznov pod Radhostem"]
[Date "2024.08.10"]
[Round "6.5"]
[White "Duchatel, Maxime"]
[Black "Bartova, Hana"]
[Result "0-1"]
[ECO "C42"]
[WhiteElo "1682"]
[BlackElo "1796"]
[Annotator "NA RC"]
[PlyCount "122"]
[EventDate "2024.08.02"]
[EventType "swiss"]
[EventCountry "CZE"]
[SourceTitle "playchess.com"]
[Source "ChessBase"]
[SourceQuality "1"]
[TimeControl "5400+30"]

1. e4 {[%emt 0:00:04]} e5 {[%emt 0:00:03]} 2. Nf3 {[%emt 0:00:05]} Nf6 {[%emt 0:00:05]} 3. Nxe5 {[%emt 0:00:06]} d6 {[%emt 0:00:02]} 4. Nf3 {[%emt 0:00:07]} Nxe4 {[%emt 0:00:02]} 5. Nc3 {[%emt 0:00:16]} Nxc3 {[%emt 0:00:07]} 6. dxc3 {[%emt 0:00:04]} Be7 {[%emt 0:00:34]} 7. Be3 {[%emt 0:00:19]} Be6 {[%emt 0:00:11]} 8. Qd2 {[%emt 0:00:52]} Qd7 {[%emt 0:00:12]} 9. Nd4 {[%emt 0:01:42]} O-O {[%emt 0:03:09]} 10. Bd3 {[%emt 0:01:45]} Nc6 {[%emt 0:02:35]} 11. O-O {[%emt 0:01:37]} Bf6 {[%emt 0:05:58]} 12. Nf3 {[%emt 0:07:17]} Ne5 {[%emt 0:04:17]} 13. Nxe5 {[%emt 0:01:02]} Bxe5 {[%emt 0:01:11]} 14. Bf4 {[%emt 0:08:48]} Bf6 {[%emt 0:02:45]} 15. Be4 {[%emt 0:05:13]} Rfe8 {[%emt 0:10:24]} 16. Qd3 {[%emt 0:09:31]} g6 {[%emt 0:06:25]} 17. h3 {[%emt 0:01:27]} Bg7 {[%emt 0:03:35]} 18. Qf3 {[%emt 0:04:00]} d5 {[%emt 0:04:45]} 19. Bd3 {[%emt 0:00:37]} Bf5 {[%emt 0:01:27]} 20. Bxf5 {[%emt 0:01:12]} Qxf5 {[%emt 0:00:07]} 21. Bxc7 Qxc2 {[%emt 0:02:33]} 22. Qxd5 {[%emt 0:09:11]} Qxb2 {[%emt 0:00:30]} 23. Rab1 {[%emt 0:00:32]} Qxc3 {[%emt 0:00:51]} 24. Rxb7 {[%emt 0:00:39]} Qf6 {[%emt 0:01:40]} 25. Bg3 {[%emt 0:05:39]} Red8 {[%emt 0:12:23]} 26. Qb3 {[%emt 0:02:52]} Qf5 {[%emt 0:09:40]} 27. Rc1 {[%emt 0:05:03]} Bd4 {[%emt 0:03:39]} 28. Rcc7 {[%emt 0:07:53]} Rf8 {[%emt 0:01:31]} 29. Qf3 {[%emt 0:07:19]} Qxf3 {[%emt 0:01:54]} 30. gxf3 {[%emt 0:00:06]} Bb6 {[%emt 0:00:13]} 31. Rd7 {[%emt 0:00:38]} Rad8 {[%emt 0:00:33]} 32. Re7 {[%emt 0:00:16]} Rd1+ {[%emt 0:14:28]} 33. Kg2 {[%emt 0:00:47]} Bd8 {[%emt 0:01:19]} 34. Red7 {[%emt 0:01:30]} Rxd7 {[%emt 0:00:13]} 35. Rxd7 {[%emt 0:00:05]} Bb6 {[%emt 0:00:11]} 36. Rb7 {[%emt 0:01:04]} Rc8 {[%emt 0:02:44]} 37. Bb8 {[%emt 0:02:42]} Rc2 {[%emt 0:01:15]} 38. Bxa7 {[%emt 0:00:04]} Rxf2+ {[%emt 0:00:19]} 39. Kg3 {[%emt 0:00:05]} Bxa7 {[%emt 0:00:10]} 40. Rxa7 {[%emt 0:00:04]} Rb2 {[%emt 0:00:22]} 41. a4 {[%emt 0:00:56]} Rb4 {[%emt 0:01:07]} 42. Kf2 {[%emt 0:01:24]} Kf8 {[%emt 0:00:40]} 43. a5 {[%emt 0:01:23]} Ke8 {[%emt 0:01:32]} 44. a6 {[%emt 0:03:25]} Ra4 {[%emt 0:00:37]} 45. Ra8+ {[%emt 0:00:28]} Ke7 {[%emt 0:00:47]} 46. a7 {[%emt 0:02:23]} h5 {[%emt 0:00:10]} 47. Ke3 {[%emt 0:00:21]} Kf6 {[%emt 0:01:30]} 48. Kf2 {[%emt 0:03:13]} Kf5 {[%emt 0:00:17]} 49. Rb8 {[%emt 0:00:57]} Rxa7 {[%emt 0:00:13]} 50. Rb5+ {[%emt 0:00:08]} Kf6 {[%emt 0:00:37]} 51. Rb6+ {[%emt 0:00:04]} Kg7 {[%emt 0:00:12]} 52. Rb4 {[%emt 0:00:05]} Ra3 {[%emt 0:00:24]} 53. h4 {[%emt 0:00:46]} Ra7 {[%emt 0:01:19]} 54. Rc4 {[%emt 0:00:33]} Re7 {[%emt 0:00:24]} 55. Rd4 {[%emt 0:00:55]} Re5 {[%emt 0:01:00]} 56. f4 {[%emt 0:02:28]} Rc5 {[%emt 0:01:08]} 57. Re4 {[%emt 0:00:48]} Kf6 {[%emt 0:00:17]} 58. Ra4 {[%emt 0:02:06]} Kf5 {[%emt 0:00:16]} 59. Ra7 {[%emt 0:00:30]} f6 {[%emt 0:01:07]} 60. Ra6 {[%emt 0:00:15]} Rc4 {[%emt 0:00:30]} 61. Ke3 {[%emt 0:01:10]} Re4+ {[%emt 0:00:22]} 0-1

[Event "European Union U14-ch 2024"]
[Site "Roznov pod Radhostem"]
[Date "2024.08.10"]
[Round "6.6"]
[White "Barteckova, Nikol"]
[Black "Madel, Luca"]
[Result "0-1"]
[ECO "C02"]
[WhiteElo "1669"]
[BlackElo "1628"]
[Annotator "NA RC"]
[PlyCount "88"]
[EventDate "2024.08.02"]
[EventType "swiss"]
[EventCountry "CZE"]
[SourceTitle "playchess.com"]
[Source "ChessBase"]
[SourceQuality "1"]
[TimeControl "5400+30"]

1. e4 {[%emt 0:00:02]} e6 {[%emt 0:00:28]} 2. d4 {[%emt 0:00:26]} d5 {[%emt 0:00:15]} 3. e5 {[%emt 0:00:05]} c5 {[%emt 0:00:51]} 4. c3 {[%emt 0:00:19]} Qb6 {[%emt 0:01:03]} 5. Nf3 {[%emt 0:01:22]} Nc6 {[%emt 0:00:19]} 6. Bd3 {[%emt 0:01:13]} Bd7 {[%emt 0:01:09]} 7. O-O {[%emt 0:09:53]} cxd4 {[%emt 0:02:25]} 8. Re1 {[%emt 0:01:26]} Nge7 {[%emt 0:07:29]} 9. h4 {[%emt 0:09:05]} h6 {[%emt 0:08:04]} 10. Nbd2 {[%emt 0:06:01]} g6 {[%emt 0:02:11]} 11. Nb3 {[%emt 0:03:37]} dxc3 {[%emt 0:01:23]} 12. bxc3 {[%emt 0:00:21]} Nf5 {[%emt 0:00:22]} 13. Rb1 {[%emt 0:05:27]} Qc7 {[%emt 0:01:51]} 14. Bb2 {[%emt 0:14:17]} Be7 {[%emt 0:00:56]} 15. g3 {[%emt 0:01:11]} b6 {[%emt 0:06:16]} 16. Nbd4 {[%emt 0:06:38]} Nfxd4 {[%emt 0:00:49]} 17. cxd4 {[%emt 0:00:17]} O-O {[%emt 0:01:01]} 18. a3 {[%emt 0:03:46]} Qb7 {[%emt 0:03:15]} 19. Nh2 {[%emt 0:02:33]} Rac8 {[%emt 0:00:58]} 20. h5 {[%emt 0:02:15]} g5 {[%emt 0:00:26]} 21. Bc2 {[%emt 0:01:14]} Kg7 {[%emt 0:02:22]} 22. Qd3 {[%emt 0:02:58]} Rh8 {[%emt 0:00:11]} 23. Ng4 {[%emt 0:05:19]} Na5 {[%emt 0:06:58]} 24. Bc1 {[%emt 0:01:44]} Qc6 {[%emt 0:02:44]} 25. Re2 {[%emt 0:02:30]} Qc3 {[%emt 0:01:04]} 26. Qd1 {[%emt 0:01:23]} Bxa3 {[%emt 0:11:23]} 27. Nf6 {[%emt 0:09:04]} Be8 {[%emt 0:03:49]} 28. Bxa3 {[%emt 0:05:55]} Qxa3 {[%emt 0:00:21]} 29. Re3 {[%emt 0:00:16]} Rc3 {[%emt 0:00:50]} 30. Re2 {[%emt 0:02:17]} Qe7 {[%emt 0:03:18]} 31. Qd2 {[%emt 0:00:45]} Qc7 {[%emt 0:01:16]} 32. Kh2 {[%emt 0:01:04]} Rf3 {[%emt 0:01:01]} 33. Rc1 {[%emt 0:00:42]} Nc4 {[%emt 0:01:19]} 34. Qe1 {[%emt 0:01:06]} Bb5 {[%emt 0:01:33]} 35. Bd1 {[%emt 0:00:39]} Rd3 {[%emt 0:00:50]} 36. f4 {[%emt 0:00:41]} Qe7 {[%emt 0:04:24]} 37. fxg5 {[%emt 0:00:25]} hxg5 {[%emt 0:00:24]} 38. Bc2 {[%emt 0:00:37]} Rf3 {[%emt 0:01:36]} 39. Bd1 {[%emt 0:00:30]} Rxf6 {[%emt 0:01:01]} 40. exf6+ {[%emt 0:00:07]} Qxf6 {[%emt 0:00:09]} 41. Qg1 {[%emt 0:00:34]} Rxh5+ {[%emt 0:01:16]} 42. Kg2 {[%emt 0:00:07]} Rh6 {[%emt 0:01:21]} 43. Bb3 {[%emt 0:00:38]} g4 {[%emt 0:01:16]} 44. Bxc4 Qf3# 0-1

[Event "European Union U14-ch 2024"]
[Site "Roznov pod Radhostem"]
[Date "2024.08.10"]
[Round "6.7"]
[White "Myronova, Sofia"]
[Black "Golub, Mia"]
[Result "1-0"]
[ECO "B23"]
[WhiteElo "1463"]
[BlackElo "1418"]
[Annotator "NA RC"]
[PlyCount "131"]
[EventDate "2024.08.02"]
[EventType "swiss"]
[EventCountry "CZE"]
[SourceTitle "playchess.com"]
[Source "ChessBase"]
[SourceQuality "1"]
[TimeControl "5400+30"]

1. e4 {[%emt 0:00:08]} c5 {[%emt 0:00:12]} 2. Nc3 {[%emt 0:00:31]} e6 {[%emt 0:01:01]} 3. f4 {[%emt 0:00:37]} Nc6 {[%emt 0:01:06]} 4. Bb5 {[%emt 0:01:34]} Nd4 {[%emt 0:01:55]} 5. Nf3 {[%emt 0:02:22]} Nxb5 {[%emt 0:01:23]} 6. Nxb5 {[%emt 0:00:18]} Qb6 {[%emt 0:02:58]} 7. Nc3 {[%emt 0:01:38]} Ne7 {[%emt 0:05:37]} 8. d3 {[%emt 0:04:52]} d5 {[%emt 0:03:31]} 9. Qd2 {[%emt 0:08:05]} d4 {[%emt 0:04:55]} 10. Ne2 {[%emt 0:00:16]} Nc6 {[%emt 0:02:28]} 11. b3 {[%emt 0:02:40]} Be7 {[%emt 0:05:04]} 12. O-O {[%emt 0:01:53]} O-O {[%emt 0:02:40]} 13. Ng3 {[%emt 0:04:37]} Qc7 {[%emt 0:04:14]} 14. Qe1 {[%emt 0:05:53]} e5 {[%emt 0:03:13]} 15. f5 {[%emt 0:02:17]} Nb4 {[%emt 0:03:30]} 16. Qe2 {[%emt 0:02:46]} Bd7 {[%emt 0:05:16]} 17. a3 {[%emt 0:01:50]} Nc6 {[%emt 0:02:11]} 18. h3 {[%emt 0:11:32]} b5 {[%emt 0:04:03]} 19. Nh2 {[%emt 0:02:05]} Bh4 {[%emt 0:05:43]} 20. Qg4 {[%emt 0:01:31]} Bxg3 {[%emt 0:04:01]} 21. Qxg3 {[%emt 0:00:16]} f6 {[%emt 0:05:26]} 22. Rf3 {[%emt 0:08:01]} a5 {[%emt 0:02:05]} 23. Qh4 {[%emt 0:01:47]} b4 {[%emt 0:04:19]} 24. a4 {[%emt 0:03:57]} Be8 {[%emt 0:02:29]} 25. Rg3 {[%emt 0:02:31]} Kh8 {[%emt 0:04:03]} 26. Rf3 {[%emt 0:02:34]} Qf7 {[%emt 0:00:56]} 27. g4 {[%emt 0:00:57]} h5 {[%emt 0:02:03]} 28. Qxh5+ {[%emt 0:03:45]} Qxh5 {[%emt 0:00:08]} 29. gxh5 {[%emt 0:00:06]} Bxh5 {[%emt 0:00:10]} 30. Rg3 {[%emt 0:00:23]} Bd1 {[%emt 0:01:58]} 31. Rg2 {[%emt 0:00:23]} Kg8 {[%emt 0:01:06]} 32. Bh6 {[%emt 0:01:03]} Kh7 {[%emt 0:04:08]} 33. Rxg7+ {[%emt 0:01:31]} Kxh6 {[%emt 0:00:51]} 34. Rg6+ {[%emt 0:00:10]} Kh7 {[%emt 0:01:17]} 35. Rxd1 {[%emt 0:00:21]} Ne7 {[%emt 0:00:28]} 36. Rg4 {[%emt 0:01:01]} Rg8 {[%emt 0:01:40]} 37. Rd2 {[%emt 0:02:55]} Rxg4+ {[%emt 0:00:49]} 38. hxg4 {[%emt 0:00:10]} Rg8 {[%emt 0:00:22]} 39. Rg2 {[%emt 0:00:10]} Rg7 {[%emt 0:00:24]} 40. Nf3 {[%emt 0:00:17]} Rf7 {[%emt 0:02:29]} 41. g5 {[%emt 0:00:59]} Rg7 {[%emt 0:02:38]} 42. gxf6 {[%emt 0:00:48]} Rxg2+ {[%emt 0:01:00]} 43. Kxg2 {[%emt 0:00:08]} Nc6 {[%emt 0:00:27]} 44. Ng5+ {[%emt 0:00:51]} Kg8 {[%emt 0:02:17]} 45. Ne6 {[%emt 0:00:00]} Kf7 {[%emt 0:01:12]} 46. Nxc5 {[%emt 0:00:00]} Kxf6 {[%emt 0:00:38]} 47. Ne6 {[%emt 0:00:08]} Ne7 {[%emt 0:00:00]} 48. Nc5 {[%emt 0:01:02]} Nc6 {[%emt 0:00:35]} 49. Kf3 {[%emt 0:00:40]} Kg5 {[%emt 0:00:50]} 50. Kg3 {[%emt 0:00:52]} Kh5 {[%emt 0:01:13]} 51. Ne6 {[%emt 0:00:41]} Ne7 {[%emt 0:00:35]} 52. f6 {[%emt 0:02:13]} Ng6 {[%emt 0:01:44]} 53. f7 {[%emt 0:00:38]} Kh6 {[%emt 0:00:48]} 54. f8=Q+ {[%emt 0:00:33]} Nxf8 {[%emt 0:00:02]} 55. Nxf8 {[%emt 0:00:18]} Kg5 {[%emt 0:00:39]} 56. Nd7 {[%emt 0:00:30]} Kg6 {[%emt 0:00:46]} 57. Nxe5+ {[%emt 0:00:12]} Kf6 {[%emt 0:00:48]} 58. Nc6 {[%emt 0:00:18]} Ke6 {[%emt 0:00:15]} 59. Nxd4+ {[%emt 0:00:20]} Ke5 {[%emt 0:00:14]} 60. Nc6+ {[%emt 0:00:21]} Kd6 {[%emt 0:00:23]} 61. Nxa5 {[%emt 0:00:18]} Ke5 {[%emt 0:00:37]} 62. Nc6+ {[%emt 0:00:39]} Kd6 {[%emt 0:00:48]} 63. Nxb4 {[%emt 0:00:19]} Kc5 {[%emt 0:00:35]} 64. e5 {[%emt 0:00:42]} Kd4 {[%emt 0:00:33]} 65. e6 {[%emt 0:00:23]} Ke5 {[%emt 0:00:28]} 66. e7 {[%emt 0:00:16]} 1-0

[Event "European Union U14-ch 2024"]
[Site "Roznov pod Radhostem"]
[Date "2024.08.11"]
[Round "7.1"]
[White "Bocquenet-Drouode, Hugo"]
[Black "Kincses, Emma"]
[Result "1/2-1/2"]
[ECO "D00"]
[WhiteElo "2025"]
[BlackElo "1618"]
[Annotator "NA RC"]
[PlyCount "180"]
[EventDate "2024.08.02"]
[EventType "swiss"]
[EventCountry "CZE"]
[SourceTitle "playchess.com"]
[Source "ChessBase"]
[SourceQuality "1"]
[TimeControl "5400+30"]

1. d4 {[%emt 0:00:04]} d5 {[%emt 0:00:05]} 2. Nc3 {[%emt 0:00:06]} Nf6 {[%emt 0:00:08]} 3. Bf4 {[%emt 0:00:05]} c5 {[%emt 0:00:17]} 4. e3 {[%emt 0:00:05]} cxd4 {[%emt 0:00:06]} 5. exd4 {[%emt 0:00:05]} a6 {[%emt 0:00:07]} 6. Nf3 {[%emt 0:00:16]} Nc6 {[%emt 0:00:09]} 7. Ne5 {[%emt 0:00:38]} Bd7 {[%emt 0:00:18]} 8. Nxc6 {[%emt 0:16:01]} Bxc6 {[%emt 0:00:17]} 9. Be2 {[%emt 0:03:10]} e6 {[%emt 0:04:52]} 10. O-O {[%emt 0:01:50]} Be7 {[%emt 0:07:19]} 11. Re1 {[%emt 0:06:15]} O-O {[%emt 0:02:42]} 12. Bd3 {[%emt 0:04:21]} Rc8 $11 {[%emt 0:06:55]} 13. Be5 {[%emt 0:06:49]} Bd6 {[%emt 0:10:56]} 14. a4 {[%emt 0:16:06]} Qe7 {[%emt 0:08:08]} 15. Re3 {[%emt 0:09:27]} h6 {[%emt 0:14:10]} 16. Rg3 {[%emt 0:12:44]} Kh8 {[%emt 0:09:24]} 17. Qf3 {[%emt 0:05:07]} Bxe5 {[%emt 0:18:06]} 18. dxe5 {[%emt 0:00:06]} Nd7 {[%emt 0:00:50]} 19. Qh5 {[%emt 0:02:19]} f6 {[%emt 0:01:44]} 20. exf6 {[%emt 0:01:31]} Nxf6 {[%emt 0:00:33]} 21. Qh4 {[%emt 0:04:49]} Qc5 {[%emt 0:02:42]} 22. Rf1 {[%emt 0:07:40]} Rce8 {[%emt 0:01:19]} 23. Bg6 {[%emt 0:01:34]} Rd8 {[%emt 0:01:06]} 24. b4 {[%emt 0:00:47]} Qd6 {[%emt 0:00:26]} 25. b5 {[%emt 0:00:12]} Be8 {[%emt 0:00:21]} 26. Bxe8 {[%emt 0:00:34]} Rdxe8 {[%emt 0:00:06]} 27. Rd3 {[%emt 0:00:14]} Qe5 {[%emt 0:01:11]} 28. Re3 {[%emt 0:00:31]} Qc7 {[%emt 0:00:33]} 29. Rd1 {[%emt 0:00:45]} Qc5 {[%emt 0:02:04]} 30. Red3 {[%emt 0:00:46]} Rd8 {[%emt 0:01:30]} 31. Qg3 {[%emt 0:00:24]} Nh5 {[%emt 0:02:01]} 32. Qe3 {[%emt 0:00:31]} Qd6 {[%emt 0:00:49]} 33. Ne4 {[%emt 0:00:28]} Qe7 {[%emt 0:00:24]} 34. Nc5 {[%emt 0:00:19]} Qf7 {[%emt 0:00:26]} 35. bxa6 {[%emt 0:00:28]} bxa6 {[%emt 0:00:30]} 36. Nxa6 {[%emt 0:00:17]} e5 {[%emt 0:01:37]} 37. R3d2 {[%emt 0:00:24]} e4 {[%emt 0:00:38]} 38. c4 {[%emt 0:00:21]} Ra8 {[%emt 0:00:31]} 39. Nc5 {[%emt 0:00:20]} dxc4 {[%emt 0:00:13]} 40. Qxe4 {[%emt 0:00:21]} Rae8 {[%emt 0:00:22]} 41. Qc2 {[%emt 0:00:48]} Qe7 {[%emt 0:00:28]} 42. Qxc4 {[%emt 0:00:29]} Rc8 {[%emt 0:00:32]} 43. Rc2 {[%emt 0:00:36]} Rf5 {[%emt 0:00:33]} 44. Qg4 {[%emt 0:01:13]} Rfxc5 {[%emt 0:00:32]} 45. Re2 {[%emt 0:00:33]} Qf7 {[%emt 0:00:49]} 46. Rde1 {[%emt 0:00:29]} Rc1 {[%emt 0:00:46]} 47. a5 {[%emt 0:00:22]} Rxe1+ {[%emt 0:00:17]} 48. Rxe1 {[%emt 0:00:05]} Rf8 {[%emt 0:00:32]} 49. Qd4 {[%emt 0:00:24]} Qf4 {[%emt 0:00:53]} 50. Qb6 {[%emt 0:00:35]} Qd2 {[%emt 0:00:27]} 51. Rf1 {[%emt 0:00:24]} Ra8 {[%emt 0:00:30]} 52. a6 {[%emt 0:00:09]} Qa2 {[%emt 0:00:25]} 53. Re1 {[%emt 0:01:02]} Qxa6 {[%emt 0:00:28]} 54. Re8+ {[%emt 0:00:13]} Rxe8 {[%emt 0:00:47]} 55. Qxa6 {[%emt 0:00:05]} Re1+ {[%emt 0:00:06]} 56. Qf1 {[%emt 0:00:06]} Rxf1+ {[%emt 0:00:04]} 57. Kxf1 {[%emt 0:00:04]} g5 {[%emt 0:00:06]} 58. Ke2 {[%emt 0:00:10]} Kg7 {[%emt 0:00:05]} 59. Kf3 {[%emt 0:00:09]} Kg6 {[%emt 0:00:11]} 60. g3 {[%emt 0:00:37]} Nf6 {[%emt 0:00:07]} 61. h3 {[%emt 0:00:16]} Kf5 {[%emt 0:00:37]} 62. Ke3 {[%emt 0:00:10]} Nd5+ {[%emt 0:00:35]} 63. Kd4 {[%emt 0:00:13]} Nb4 {[%emt 0:01:02]} 64. f3 {[%emt 0:00:18]} Nc6+ {[%emt 0:01:26]} 65. Kd3 {[%emt 0:00:09]} Ne5+ {[%emt 0:00:45]} 66. Ke3 {[%emt 0:00:07]} Nc4+ {[%emt 0:00:53]} 67. Kd4 {[%emt 0:00:14]} Nb6 {[%emt 0:01:08]} 68. Kc5 {[%emt 0:00:39]} Na4+ {[%emt 0:00:24]} 69. Kd4 {[%emt 0:00:06]} Nb2 {[%emt 0:00:50]} 70. Ke3 {[%emt 0:00:08]} Nc4+ {[%emt 0:00:30]} 71. Kd4 {[%emt 0:00:07]} Nb6 {[%emt 0:00:57]} 72. Kc5 {[%emt 0:00:06]} Nd7+ {[%emt 0:00:14]} 73. Kd4 {[%emt 0:00:07]} Nf8 {[%emt 0:00:15]} 74. Kd3 {[%emt 0:00:40]} Ke5 {[%emt 0:00:11]} 75. Ke3 {[%emt 0:00:26]} Nd7 {[%emt 0:00:10]} 76. Kd3 {[%emt 0:00:07]} Kd5 {[%emt 0:00:31]} 77. Ke3 {[%emt 0:00:11]} Ke5 {[%emt 0:00:22]} 78. Kd3 {[%emt 0:00:06]} Nb6 {[%emt 0:00:24]} 79. Ke3 {[%emt 0:00:11]} Nd5+ {[%emt 0:00:19]} 80. Kd3 {[%emt 0:00:08]} Nf4+ {[%emt 0:00:46]} 81. gxf4+ {[%emt 0:00:26]} Kxf4 {[%emt 0:00:07]} 82. Ke2 {[%emt 0:00:23]} Kg3 {[%emt 0:00:07]} 83. h4 {[%emt 0:00:10]} Kxh4 {[%emt 0:00:56]} 84. Kf2 {[%emt 0:00:08]} Kh3 {[%emt 0:00:08]} 85. f4 {[%emt 0:00:06]} gxf4 {[%emt 0:00:13]} 86. Kf3 {[%emt 0:00:08]} h5 {[%emt 0:00:42]} 87. Kxf4 {[%emt 0:00:04]} h4 {[%emt 0:00:30]} 88. Kf3 {[%emt 0:00:04]} Kh2 {[%emt 0:00:21]} 89. Kf2 {[%emt 0:00:01]} h3 {[%emt 0:00:25]} 90. Kf1 {[%emt 0:00:10]} Kg3 {[%emt 0:00:26]} 1/2-1/2

[Event "European Union U14-ch 2024"]
[Site "Roznov pod Radhostem"]
[Date "2024.08.11"]
[Round "7.2"]
[White "Belocky, Daniel"]
[Black "Constantinoiu, Alexandru Ioan"]
[Result "0-1"]
[ECO "D02"]
[WhiteElo "1731"]
[BlackElo "1904"]
[Annotator "NA RC"]
[PlyCount "90"]
[EventDate "2024.08.02"]
[EventType "swiss"]
[EventCountry "CZE"]
[SourceTitle "playchess.com"]
[Source "ChessBase"]
[SourceQuality "1"]
[TimeControl "5400+30"]

1. d4 {[%emt 0:00:03]} d5 {[%emt 0:00:14]} 2. Nf3 {[%emt 0:00:04]} Nf6 {[%emt 0:00:19]} 3. c4 {[%emt 0:00:09]} c6 {[%emt 0:00:11]} 4. g3 {[%emt 0:00:24]} dxc4 {[%emt 0:00:21]} 5. a4 {[%emt 0:00:11]} b5 {[%emt 0:05:57]} 6. axb5 {[%emt 0:00:06]} cxb5 {[%emt 0:01:46]} 7. Nc3 {[%emt 0:00:18]} Qb6 {[%emt 0:15:08]} 8. b3 {[%emt 0:03:44]} e6 {[%emt 0:05:51]} 9. bxc4 {[%emt 0:00:43]} Bb4 {[%emt 0:03:45]} 10. Qb3 {[%emt 0:01:04]} bxc4 {[%emt 0:01:26]} 11. Qxc4 $2 {[%emt 0:01:04]} (11. Qc2 $17 {was called for.}) 11... Ba6 {[%emt 0:04:24]} 12. Qb3 $19 {[%emt 0:01:57]} Ne4 {[%emt 0:15:44]} 13. Bd2 {[%emt 0:01:27]} Bxc3 {[%emt 0:03:02]} 14. Qxb6 {[%emt 0:00:35]} axb6 {[%emt 0:00:21]} 15. Bxc3 {[%emt 0:00:25]} Nxc3 {[%emt 0:00:09]} 16. Rc1 {[%emt 0:00:59]} Nb5 {[%emt 0:01:57]} 17. Bg2 {[%emt 0:00:29]} Bb7 {[%emt 0:01:51]} 18. O-O {[%emt 0:00:37]} O-O {[%emt 0:01:19]} 19. e3 {[%emt 0:00:42]} Nd7 {[%emt 0:01:00]} 20. Rb1 {[%emt 0:01:01]} Nc3 {[%emt 0:00:27]} 21. Rb3 {[%emt 0:00:37]} Rfc8 {[%emt 0:00:24]} 22. Re1 {[%emt 0:00:26]} f6 {[%emt 0:00:54]} 23. Ne5 {[%emt 0:02:03]} Bxg2 {[%emt 0:00:47]} 24. Nxd7 {[%emt 0:00:05]} Bd5 {[%emt 0:00:49]} 25. Rb2 {[%emt 0:00:34]} Na4 {[%emt 0:03:58]} 26. Rb4 {[%emt 0:01:00]} Rc7 {[%emt 0:02:27]} 27. Nxb6 {[%emt 0:00:48]} Nxb6 {[%emt 0:00:05]} 28. Rxb6 {[%emt 0:00:05]} Rac8 {[%emt 0:00:09]} 29. Rb2 {[%emt 0:00:19]} Be4 {[%emt 0:00:49]} 30. f4 {[%emt 0:00:33]} Rc2 {[%emt 0:00:37]} 31. Re2 {[%emt 0:00:28]} Rxe2 {[%emt 0:00:21]} 32. Rxe2 {[%emt 0:00:07]} Rc1+ {[%emt 0:00:05]} 33. Kf2 {[%emt 0:00:13]} Rh1 {[%emt 0:00:06]} 34. h4 {[%emt 0:00:06]} Rh2+ {[%emt 0:00:10]} 35. Ke1 {[%emt 0:00:04]} Rh3 {[%emt 0:00:15]} 36. Kf2 {[%emt 0:00:12]} Rh2+ {[%emt 0:00:29]} 37. Ke1 {[%emt 0:00:06]} Rxe2+ {[%emt 0:00:08]} 38. Kxe2 {[%emt 0:00:03]} h5 {[%emt 0:00:15]} 39. Kd2 {[%emt 0:00:08]} Kf7 {[%emt 0:00:05]} 40. Ke2 {[%emt 0:00:23]} Kg6 {[%emt 0:00:05]} 41. Kf2 {[%emt 0:00:06]} Kf5 {[%emt 0:00:05]} 42. Ke2 {[%emt 0:00:19]} Kg4 {[%emt 0:00:05]} 43. Kf2 {[%emt 0:00:09]} Kh3 {[%emt 0:00:05]} 44. g4 {[%emt 0:00:24]} hxg4 {[%emt 0:00:12]} 45. h5 {[%emt 0:00:08]} Kh2 {[%emt 0:00:05]} 0-1

[Event "European Union U14-ch 2024"]
[Site "Roznov pod Radhostem"]
[Date "2024.08.11"]
[Round "7.3"]
[White "Ochkova, Maria"]
[Black "Stara, Zuzana"]
[Result "1/2-1/2"]
[ECO "B13"]
[WhiteElo "1553"]
[BlackElo "2005"]
[Annotator "NA RC"]
[PlyCount "99"]
[EventDate "2024.08.02"]
[EventType "swiss"]
[EventCountry "CZE"]
[SourceTitle "playchess.com"]
[Source "ChessBase"]
[SourceQuality "1"]
[TimeControl "5400+30"]

1. e4 {[%emt 0:00:05]} c6 {[%emt 0:00:02]} 2. d4 {[%emt 0:00:07]} d5 {[%emt 0:00:05]} 3. exd5 {[%emt 0:00:06]} cxd5 {[%emt 0:00:05]} 4. Bd3 {[%emt 0:00:05]} Nc6 {[%emt 0:00:15]} 5. c3 {[%emt 0:00:07]} Qc7 {[%emt 0:00:06]} 6. Ne2 {[%emt 0:00:12]} e5 {[%emt 0:00:40]} 7. dxe5 {[%emt 0:00:48]} Nxe5 {[%emt 0:00:14]} 8. Bb5+ {[%emt 0:00:35]} Bd7 {[%emt 0:00:57]} 9. Bxd7+ {[%emt 0:06:30]} Qxd7 {[%emt 0:00:35]} 10. O-O {[%emt 0:00:12]} Bd6 {[%emt 0:04:05]} 11. h3 {[%emt 0:05:24]} Ne7 {[%emt 0:03:26]} 12. Nd2 {[%emt 0:03:04]} O-O {[%emt 0:02:45]} 13. Nd4 {[%emt 0:00:28]} N7c6 {[%emt 0:13:40]} 14. N2f3 {[%emt 0:04:09]} a6 {[%emt 0:03:49]} 15. Qc2 $11 {[%emt 0:03:25]} Rac8 {[%emt 0:05:41]} 16. Rd1 {[%emt 0:03:52]} Rfe8 {[%emt 0:16:47]} 17. Nxe5 {[%emt 0:08:59]} Bxe5 {[%emt 0:06:16]} 18. Qf5 {[%emt 0:03:34]} Qc7 {[%emt 0:07:35]} 19. Be3 {[%emt 0:02:40]} Rcd8 {[%emt 0:05:08]} 20. Rd3 {[%emt 0:12:10]} Bd6 {[%emt 0:06:23]} 21. Rad1 {[%emt 0:01:15]} Ne5 {[%emt 0:01:41]} 22. R3d2 {[%emt 0:00:44]} Nc4 {[%emt 0:02:47]} 23. Re2 {[%emt 0:00:31]} Nxe3 {[%emt 0:02:12]} 24. fxe3 {[%emt 0:00:20]} Re5 {[%emt 0:01:29]} 25. Qf3 {[%emt 0:03:01]} Rde8 {[%emt 0:05:20]} 26. Nf5 {[%emt 0:08:53]} g6 {[%emt 0:00:48]} 27. Nxd6 {[%emt 0:01:28]} Qxd6 {[%emt 0:00:02]} 28. c4 {[%emt 0:03:06]} Rf5 {[%emt 0:05:49]} 29. Rxd5 {[%emt 0:02:20]} Rxf3 {[%emt 0:00:34]} 30. Rxd6 {[%emt 0:00:10]} Rfxe3 {[%emt 0:00:05]} 31. Rxe3 {[%emt 0:00:07]} Rxe3 {[%emt 0:00:02]} 32. Rd7 {[%emt 0:00:19]} Re4 {[%emt 0:01:37]} 33. b3 {[%emt 0:02:30]} b5 {[%emt 0:01:46]} 34. c5 {[%emt 0:00:33]} b4 {[%emt 0:03:16]} 35. c6 {[%emt 0:01:02]} Re1+ {[%emt 0:00:14]} 36. Kh2 {[%emt 0:00:11]} Rc1 {[%emt 0:00:14]} 37. Rd4 {[%emt 0:01:48]} Rxc6 {[%emt 0:00:10]} 38. Rxb4 {[%emt 0:00:05]} Kg7 {[%emt 0:00:32]} 39. a4 {[%emt 0:02:15]} Kf6 {[%emt 0:01:50]} 40. Rb7 {[%emt 0:03:48]} Ke6 {[%emt 0:00:29]} 41. Kg3 {[%emt 0:00:53]} h6 {[%emt 0:00:34]} 42. a5 {[%emt 0:01:41]} f5 {[%emt 0:00:42]} 43. Rb6 {[%emt 0:00:52]} Rxb6 {[%emt 0:00:35]} 44. axb6 {[%emt 0:00:26]} Kd6 {[%emt 0:00:04]} 45. Kf4 {[%emt 0:00:16]} Kc6 {[%emt 0:00:07]} 46. Ke5 {[%emt 0:00:14]} Kxb6 {[%emt 0:00:15]} 47. Kf6 {[%emt 0:00:07]} Kb5 {[%emt 0:00:15]} 48. Kxg6 {[%emt 0:00:07]} Kb4 {[%emt 0:00:24]} 49. Kxf5 {[%emt 0:00:05]} Kxb3 {[%emt 0:00:06]} 50. g4 {[%emt 0:00:13]} 1/2-1/2